{"text_format":"3","workbook":"xlsx","n_sheets":3,"sheets":["학생 목록","출석부","학생 세부 정보"],"not_rendered":{"images":2,"defined_names":8},"read":"whole","date_system":"1900"}

{"sheet":"학생 목록","index":0,"n_rows":8,"n_cols":13,"rows_kept":8,"merged":[[1,2,2,3],[1,4,1,11],[2,4,2,11],[6,12,8,16]]}
[]
[null,null,"학생 목록",null,"출석부"]
[{"$nulls":4},"학생 세부 정보로 이동"]
[null,null,"학생 이름","전자 메일","집 전화 번호","휴대폰","DOB","비상 연락처","비상 전화 번호","의사","의사 전화 번호","  "]
[null,null,"이름 1","전자 메일 주소","집 전화 번호","휴대폰","날짜","연락처 1","비상 전화 번호","의사 1","의사 전화 번호"]
[null,null,"이름 2","전자 메일 주소","집 전화 번호","휴대폰","날짜","연락처 2","비상 전화 번호","의사 2","의사 전화 번호"]
[null,null,"이름 3","전자 메일 주소","집 전화 번호","휴대폰","날짜","연락처 3","비상 전화 번호","의사 3","의사 전화 번호",null,"팁: 학생을 추가하려면 표의 마지막 셀에서 Tab 키를 누릅니다."]
[null,null,"이름 4","전자 메일 주소","집 전화 번호","휴대폰","날짜","연락처 4","비상 전화 번호","의사 4","의사 전화 번호"]

{"sheet":"출석부","index":1,"n_rows":12,"n_cols":7,"rows_kept":12,"merged":[[1,2,2,2],[1,3,2,3],[1,4,1,6],[2,4,2,6]]}
[]
[null,null,"출석부","베네디스 유통 ㈜","학생 목록으로 이동"]
[{"$nulls":4},"학생 세부 정보로 이동"]
[null,null,"강의","과목 이름","시작 날짜","날짜"]
[null,null,"강사","강사 1","종료 날짜","날짜"]
[null,null,"등록한 학생",{"$f":"COUNTA(출석부[학생 이름])","v":4}]
[]
[null,null,"학생 이름","전자 메일","집 전화 번호","휴대폰","  "]
[null,null,"이름 1",{"$f":"IFERROR(VLOOKUP(출석부[[#This Row],[학생 이름]],학생[],2),\"\")","v":"전자 메일 주소"},{"$f":"IFERROR(VLOOKUP(출석부[[#This Row],[학생 이름]],학생[],3),\"\")","v":"집 전화 번호"},{"$f":"IFERROR(VLOOKUP(출석부[[#This Row],[학생 이름]],학생[],4),\"\")","v":"휴대폰"}]
[null,null,"이름 2",{"$f":"IFERROR(VLOOKUP(출석부[[#This Row],[학생 이름]],학생[],2),\"\")","v":"전자 메일 주소"},{"$f":"IFERROR(VLOOKUP(출석부[[#This Row],[학생 이름]],학생[],3),\"\")","v":"집 전화 번호"},{"$f":"IFERROR(VLOOKUP(출석부[[#This Row],[학생 이름]],학생[],4),\"\")","v":"휴대폰"}]
[null,null,"이름 3",{"$f":"IFERROR(VLOOKUP(출석부[[#This Row],[학생 이름]],학생[],2),\"\")","v":"전자 메일 주소"},{"$f":"IFERROR(VLOOKUP(출석부[[#This Row],[학생 이름]],학생[],3),\"\")","v":"집 전화 번호"},{"$f":"IFERROR(VLOOKUP(출석부[[#This Row],[학생 이름]],학생[],4),\"\")","v":"휴대폰"}]
[null,null,"이름 4",{"$f":"IFERROR(VLOOKUP(출석부[[#This Row],[학생 이름]],학생[],2),\"\")","v":"전자 메일 주소"},{"$f":"IFERROR(VLOOKUP(출석부[[#This Row],[학생 이름]],학생[],3),\"\")","v":"집 전화 번호"},{"$f":"IFERROR(VLOOKUP(출석부[[#This Row],[학생 이름]],학생[],4),\"\")","v":"휴대폰"}]

{"sheet":"학생 세부 정보","index":2,"n_rows":13,"n_cols":4,"rows_kept":13,"merged":[[1,2,2,2],[1,3,1,4],[2,3,2,4],[3,2,3,3]]}
[]
[null,null,"학생 세부 정보","학생 목록으로 이동"]
[{"$nulls":3},"출석부"]
[null,null,"팁: 셀 D5의 드롭다운 목록에서 학생을 선택하면 학생 세부 정보가 업데이트됩니다."]
[null,null,"학생 이름","이름 1"]
[null,null,"전자 메일",{"$f":"IFERROR(VLOOKUP(학생이름,학생[],2,FALSE),\"\")","v":"전자 메일 주소"}]
[null,null,"집 전화 번호",{"$f":"IFERROR(VLOOKUP(학생이름,학생[],3,FALSE),\"\")","v":"집 전화 번호"}]
[null,null,"휴대폰",{"$f":"IFERROR(VLOOKUP(학생이름,학생[],4,FALSE),\"\")","v":"휴대폰"}]
[null,null,"DOB",{"$f":"IFERROR(VLOOKUP(학생이름,학생[],5,FALSE),\"\")","v":"날짜"}]
[null,null,"비상 연락처",{"$f":"IFERROR(VLOOKUP(학생이름,학생[],6,FALSE),\"\")","v":"연락처 1"}]
[null,null,"비상 전화 번호",{"$f":"IFERROR(VLOOKUP(학생이름,학생[],7,FALSE),\"\")","v":"비상 전화 번호"}]
[null,null,"의사",{"$f":"IFERROR(VLOOKUP(학생이름,학생[],8,FALSE),\"\")","v":"의사 1"}]
[null,null,"의사 전화 번호",{"$f":"IFERROR(VLOOKUP(학생이름,학생[],9,FALSE),\"\")","v":"의사 전화 번호"}]